Cogmind - Beta 10.2 @@@ ROGUE MODE // 2021.02.06 @ 14:09:27 Player: TotallyRasta Result: Destroyed by Y-45 Defender with Beam Rifle Performance ------------- Evolutions (1) 500 Regions Visited (2) 400 Robots Destroyed (29) 145 Value Destroyed (768) 768 Prototype IDs (2) 40 Alien Tech Used (0) 0 Bonus (0) 0 TOTAL SCORE: 1853 Bonus ------- None Cogmind --------- Core Integrity 0/400 Matter 280/300 Energy 100/100 System Corruption 0% Temperature Cool (9) Movement Walking (150) Ox1 Location -9/Materials Parts ------- > --- POWER (1) -------- (None) > --- PROPULSION (2) --- Aluminum Leg > --- UTILITY (2) ------ Medium Storage Unit Core Shielding > --- WEAPON (4) ------- Flail Flail > --- INVENTORY (8) ---- Light Armor Plating Light Armor Plating High-powered Tractor Beam Peak State ------------ > --- POWER ------------ Light Ion Engine > --- PROPULSION ------- Light Treads Improved Treads > --- UTILITY ---------- Medium Storage Unit Transport Network Coupler > --- WEAPON ----------- Small Laser Particle Gun Improved Assault Rifle Hammer > --- INVENTORY -------- Core Shielding Light Armor Plating Light Armor Plating High-powered Tractor Beam [Rating: 13] Favorites ----------- Power Light Ion Engine Engine Light Ion Engine Propulsion Improved Treads Treads Improved Treads Leg Aluminum Leg Wheel Wheel Utility Core Shielding Storage Small Storage Unit Processor Transport Network Coupler Protection Core Shielding Weapon Hammer Energy Gun Small Laser Ballistic Gun Light Assault Rifle Impact Weapon Hammer Build | -11 -10 -9 ------- Run | Scr Mat Mat Slots Evolved 2 | . . 2 Power . | . . . Propulsion . | . . . Utility . | . . . Weapon 2 | . . 2 Parts Attached 31 | 6 1 24 Power 5 | 1 . 4 Engine 5 | 1 . 4 Core . | . . . Reactor . | . . . Propulsion 12 | 2 . 10 Treads 7 | . . 7 Leg 1 | . . 1 Wheel 4 | 2 . 2 Hover . | . . . Flight . | . . . Utility 5 | 1 1 3 Device . | . . . Storage 2 | 1 . 1 Processor 1 | . . 1 Hackware . | . . . Protection 2 | . 1 1 Artifact . | . . . Weapon 9 | 2 . 7 Energy Gun 4 | 1 . 3 Energy Cannon . | . . . Ballistic Gun 2 | 1 . 1 Ballistic Cannon . | . . . Launcher . | . . . Special Weapon . | . . . Impact Weapon 3 | . . 3 Slashing Weapon . | . . . Piercing Weapon . | . . . Special Melee Weapon . | . . . Unidentified Prototypes . | . . . Parts Lost 14 | . . 14 Power 2 | . . 2 Propulsion 8 | . . 8 Utility . | . . . Weapon 4 | . . 4 Highest Loss Streak 3 | . . 3 Average Slot Usage (%) 84 | . 98 81 Engine 11 | . 14 10 Treads 9 | . . 11 Wheel 10 | . 28 6 Storage 11 | . 14 11 Processor 3 | . . 3 Protection 7 | . 12 7 Energy Gun 10 | . 14 9 Ballistic Gun 7 | . 14 6 Impact Weapon 11 | . . 14 Naked Turns . | . . . Heaviest Build 22 | 9 10 22 Greatest Support 46 | 26 26 46 Greatest Overweight (x) 2 | . . 2 Average Overweight (x) . | . . . Largest Inventory Capacity 8 | 6 6 8 Average Capacity 6 | 5 6 7 Most Carried 8 | 4 6 8 Average Carried 4 | 2 5 5 Final Capacity 8 | 6 6 8 Final Carried 6 | 4 6 3 Class Distribution -------------------- 86% | Mutant 6% | Scavenger-Mutant 5% | Skirmisher Dominant Class ---------------- Mutant | -10/Materials Mutant | -9/Materials Resources | -11 -10 -9 ----------- Run | Scr Mat Mat Matter Collected 532 | 162 . 370 Remotely . | . . . Salvage Created 1171 | . 179 992 Parts 63 | . 7 56 Haulers Intercepted 6 | . 1 5 Recyclers Shooed . | . . . Parts Field Recycled . | . . . Retrieved Matter . | . . . Parts Self-Destructed . | . . . Prevented . | . . . Kills | -11 -10 -9 ------- Run | Scr Mat Mat Combat Hostiles Destroyed 22 | . 3 19 Melee 7 | . . 7 Guns 12 | . 3 9 Classes Destroyed 5 | . 2 3 Builder 1 | . . 1 Hauler 6 | . 1 5 Swarmer 4 | . . 4 Grunt 12 | . 3 9 Sentry 6 | . . 6 Best Kill Streak 4 | . 2 4 Combat Bots Only 4 | . 2 4 Max Kills in Single Turn 1 | . 1 1 Gunslinging . | . . . Exploded . | . . . Melee 1 | . . 1 Uniques/NPCs Destroyed . | . . . Combat | -11 -10 -9 -------- Run | Scr Mat Mat Damage Taken 2024 | . 45 1979 Core 403 | . . 403 Absorbed by Shields . | . . . Core Remaining (%) 100 | 100 100 . Volleys Fired 70 | . 12 58 Largest 3 | . 2 3 Hottest 128 | . 60 128 Shots Fired 143 | . 24 119 Gun 143 | . 24 119 Cannon . | . . . Launcher . | . . . Special . | . . . Kinetic 64 | . 12 52 Thermal 71 | . 12 59 Explosive . | . . . Electromagnetic 8 | . . 8 Robot Hit Streak 10 | . 10 10 Robot Miss Streak 3 | . 2 3 Penetration Max . | . . . Secondary Targets . | . . . Shots Hit Robots 168 | . 18 150 Core Hits 45 | . 8 37 Critical Hits 1 | . . 1 Critical Kills 1 | . . 1 Critical Parts Destroyed . | . . . Melee Attacks 90 | . . 90 Impact 90 | . . 90 Slashing . | . . . Piercing . | . . . Sneak Attacks 3 | . . 3 Combat Hostiles . | . . . Follow-up Attacks 11 | . . 11 Damage Inflicted 2483 | . 178 2305 Guns 1057 | . 178 879 Cannons . | . . . Explosions . | . . . Melee 1426 | . . 1426 Ramming . | . . . Kinetic 334 | . 60 274 Thermal 663 | . 118 545 Explosive . | . . . Electromagnetic 60 | . . 60 Impact 1426 | . . 1426 Slashing . | . . . Piercing . | . . . Highest Corruption . | . . . Average Corruption . | . . . Corruption Purged . | . . . Overload Shots . | . . . Overflow Damage 115 | . . 115 Projectiles . | . . . Explosions . | . . . Melee 115 | . . 115 Knockbacks 4 | . . 4 Impact 4 | . . 4 Kinetic . | . . . Secondary . | . . . Self-Inflicted Damage . | . . . Shots . | . . . Rammed . | . . . Targets Rammed . | . . . Kicked . | . . . Crushed . | . . . Highest Temperature 365 | . 52 365 Average Temperature 58 | . 23 63 Received Heat Transfer 768 | . 24 744 Effects 2 | . . 2 Interference 2 | . . 2 Siege Activations . | . . . Robots Corrupted . | . . . Combat Hostiles . | . . . Parts Fried 2 | . . 2 Impact Corruptions 8 | . . 8 Robots Melted . | . . . Combat Hostiles . | . . . Parts Melted 1 | . . 1 Heat Transferred 1541 | . 275 1266 Parts Sabotaged . | . . . Parts Stolen . | . . . Parts Stripped . | . . . Power Chain Reactions . | . . . Missiles Intercepted . | . . . Alert | -11 -10 -9 ------- Run | Scr Mat Mat Peak Influence 291 | . 107 291 Initial 44 | . . 44 Average 95 | . 38 112 Maximum Alert Level 1 | . . 1 Low Security (%) 89 | 100 100 86 Level 1 10 | . . 13 Level 2 . | . . . Level 3 . | . . . Level 4 . | . . . Level 5 . | . . . High Security . | . . . Max Security . | . . . Squads Dispatched 6 | . 2 4 Investigation 2 | . . 2 Extermination . | . . . Reinforcement 4 | . 2 2 Assault . | . . . Garrison . | . . . Intercept . | . . . Construction Impeded . | . . . Haulers Reinforced . | . . . Stealth | -11 -10 -9 --------- Run | Scr Mat Mat Distress Signals 6 | . . 6 Communications Jammed . | . . . Distress Signals . | . . . Times Spotted 44 | . 9 35 Peak Tracking Total 8 | . 3 8 Tactical Retreats 4 | . 1 3 Traps | -11 -10 -9 ------- Run | Scr Mat Mat Traps Triggered 1 | . . 1 Indirectly . | . . . Trap Hack Attempts . | . . . Triggered . | . . . Disarmed . | . . . Reprogrammed . | . . . Reused . | . . . Traps Extracted . | . . . Installed . | . . . Triggered . | . . . Machines | -11 -10 -9 ---------- Run | Scr Mat Mat Machines Disabled 2 | . . 2 Max in Single Turn 1 | . . 1 Machines Sabotaged . | . . . Garrisons Compromised . | . . . Overloaded Fab Kills . | . . . Fab Network Shutdowns . | . . . Hacking | -11 -10 -9 --------- Run | Scr Mat Mat Machines Accessed 3 | . 2 1 Terminals 3 | . 2 1 Fabricators . | . . . Repair Stations . | . . . Recycling Units . | . . . Scanalyzers . | . . . Garrison Access . | . . . Total Hacks 6 | . 4 2 Successful 5 | . 3 2 Failed 1 | . 1 . Catastrophic . | . . . Database Lockouts . | . . . Manual 3 | . 2 1 Terminals 6 | . 4 2 Fabricators . | . . . Repair Stations . | . . . Recycling Units . | . . . Scanalyzers . | . . . Garrison Access . | . . . Terminal Hacks 5 | . 3 2 Record 1 | . . 1 Prototype ID Bank 1 | . 1 . Emergency Access Points 1 | . 1 . Hauler Manifests 2 | . 1 1 Fabricator Hacks . | . . . Repair Station Hacks . | . . . Recycling Unit Hacks . | . . . Scanalyzer . | . . . Garrison Access Hacks . | . . . Unauthorized Hacks . | . . . Terminals . | . . . Fabricators . | . . . Repair Stations . | . . . Recycling Units . | . . . Scanalyzers . | . . . Garrison Access . | . . . Data Cores Recovered . | . . . Used . | . . . Hacking Detections . | . . . Full Trace Events . | . . . Feedback Events . | . . . Feedback Blocked . | . . . Robot Schematics Acquired . | . . . Robots Built . | . . . Matter . | . . . Time . | . . . Total Robot Build Rating . | . . . Part Schematics Acquired . | . . . Parts Built . | . . . Matter . | . . . Time . | . . . Total Part Build Rating . | . . . Parts Repaired . | . . . Time . | . . . Parts Recycled . | . . . Recycled Matter . | . . . Retrieved Matter . | . . . Retrieved Components . | . . . Parts Scanalyzed . | . . . Part Schematics Acquired . | . . . Parts Damaged . | . . . Bothacking | -11 -10 -9 ------------ Run | Scr Mat Mat Used RIF Installer . | . . . Robots Hacked . | . . . Non-combat . | . . . Combat . | . . . Robot Hacks Applied . | . . . Relay Couplers Released . | . . . Robots Rewired . | . . . Allies Hacked . | . . . Hacks Repelled . | . . . Allies | -11 -10 -9 -------- Run | Scr Mat Mat Total Allies . | . . . Largest Group . | . . . Highest-Rated Group . | . . . Highest-Rated Ally . | . . . Total Orders . | . . . Ally Attacks . | . . . Total Damage . | . . . Kills . | . . . Allies Corrupted . | . . . Allies Melted . | . . . Intel | -11 -10 -9 ------- Run | Scr Mat Mat Robot Analysis Total . | . . . Derelict Logs Recovered . | . . . Drone Launches . | . . . Drone Recoveries . | . . . Exploration | -11 -10 -9 ------------- Run | Scr Mat Mat Turns Passed 1351 | 49 234 1068 Spaces Moved 699 | 41 207 451 Core 1 | 1 . . Treads 263 | . . 263 Legs 1 | . . 1 Wheels 434 | 40 207 187 Hover . | . . . Flight . | . . . Fastest Speed 50 | 50 90 80 Average Speed 114 | 88 90 128 Slowest Speed 160 | 90 90 160 Overloaded Moves . | . . . Propulsion Burnouts . | . . . Robots Hopped . | . . . Cave-ins Triggered . | . . . Exploration Rate (%) 40 | 3 65 53 Regions Visited 2 Branch Regions . Pre-discovered Areas . | . . . Known Exits Taken . | . . . Unknown Exits Taken 2 | 1 1 . Scrap Searched . | . . . Spaces Dug 2 | . . 2 Terrain Destroyed 2 | . . 2 Melee 2 | . . 2 Projectile . | . . . AOE . | . . . Terrain Rammed . | . . . Walls Destroyed . | . . . Machines Disabled . | . . . Actions | -11 -10 -9 --------- Run | Scr Mat Mat Total 1001 | 51 232 718 Wait 99 | . 11 88 Move 697 | 40 206 451 Hop . | . . . Pick Up 14 | 5 2 7 Fast Attach 14 | 5 1 8 Attach 12 | 1 . 11 Detach 4 | . . 4 Swap 5 | . . 5 Drop 10 | . . 10 Fire 70 | . 12 58 Melee 76 | . . 76 Ram . | . . . Kick . | . . . Crush . | . . . Escape Stasis . | . . . Rewire . | . . . Trap . | . . . Miscellaneous . | . . . Route ------- -11/Scrapyard -10/Materials (discovered 2 exits: *Mat / [*Min]) -9/Materials (discovered 1 exit: [*Min]) History --------- Turn | Location | Event 27 | -11/Scrapyard | Discovered new exit (range 15) 50 | -11/Scrapyard | Entered Materials 101 | -10/Materials | Discovered new exit (range 11) 267 | -10/Materials | Discovered new exit (range 16) 284 | -10/Materials | Entered another Materials area 284 | -9/Materials | Evolved 2 slots: Weapon x2 305 | -9/Materials | Build established: Mutant 804 | -9/Materials | Lost 3 parts (1p2n) 868 | -9/Materials | Discovered new exit (range 14) 1209 | -9/Materials | Core integrity fell below 50% 1317 | -9/Materials | Core integrity fell below 20% 1332 | -9/Materials | Lost 3 parts (1p2n) 1352 | -9/Materials | Destroyed by Y-45 Defender with Beam Rifle Last Messages --------------- 01251_ Wheel destroyed. 01253_ Hammer destroyed. 01254_ ALERT: Hostiles spotted, dispatching reinforcements to Terminal M001. 01272_ Flail follow-up attack on G-34 Mercenary. 01280_ G-34 Mercenary destroyed. 01284_ Wheel destroyed. 01285_ Flail follow-up attack on G-34 Mercenary. 01292_ Destroyed Heat Sink. 01292_ G-34 Mercenary system corrupted by crushing effect. 01293_ G-34 Mercenary system terminally corrupted. 01293_ Ion Engine fried. 01295_ Imp. Ion Engine destroyed. 01301_ Imp. Treads destroyed. 01309_ Acquired Aluminum Leg. 01314_ Flail follow-up attack on Y-45 Defender. 01340_ Y-45 Defender destroyed. 01345_ Lgt. Treads destroyed. 01348_ Flail follow-up attack on Y-45 Defender. 01350_ Y-45 Defender destroyed. Map ----- +----------------------------------------------------+ | ?????????????# ??????# !!"## ## #???? | | ?????????????# ?????# ####### ##########????? | | ?????????????# "???# #?????# #?????????????? | | ?????????????# T???# #?????# #?????????????? | | ?????????????# ""??# #?????# #?????????????? | | ?????????????# ""??# #????## ##????????????? | | ?????????????# ## ###### #????????????? | | ?????????????# # T" #????????????? | | ?????????????# !! + " #????????????? | | ?????????????+ !! # #????????????? | | ?????????????# ! # ####### #????????????? | | ?????????????# ?# #?????#######????????????? | | ????????## ??######?# #????????????????????????? | | ????????# ####### #????????????????????????? | | ????????# ] #????????????????????????? | | ????? #????????????????????????? | | ????????# #????????????????????????? | | ????????# ####### #????????????????????????? | | ????????###/????????# #????????????????????????? | | ????????????????????# #????????????????????????? | | ????????????????????# o #######+#######??????????? | | ????????????????????# ?????????? | | ????????????????????# ?????????? | | ????????????????????# g%% ?????????? | | ????????????????????####Y#############???????????? | | ?????????????????????#[=%@ !#????????????????????? | | ?????????????????????# [ #????????????????????? | | ?????????????????????# =! #????????????????????? | | ?????????????????????# !! #????????????????????? | | ?????????????????????# !! #????????????????????? | | ?????????????????????# #????????????????????? | | ?????????????????????########????????????????????? | | ?????????????????????????????????????????????????? | | | | | | | | | | | | | | | | | | | | | | | | | | | | | | | | | | | +----------------------------------------------------+ Best States ------------- Heat Dissipation 28 Energy Generation 12 Energy Capacity 265 Matter Stores 300 Matter Capacity 300 Sight Range 16 Terrain Scan Density 10 Core Shielding 20 Evasion (%) 44 Recoil Reduction 2 Item Schematics ----------------- None Robot Schematics ------------------ None Fabricated ------------ Nothing Alien Tech Used ----------------- None Achievements -------------- None Challenges ------------ None Game ------ Seed LinkedDamperManipulator Manual? 0 Play Time 00:23:07 Cumulative 93.6 hours Start 2021.02.06 @ 13:35:14 End 2021.02.06 @ 14:09:27 Sessions 1 Manual Loads 0 Difficulty Rogue Special Mode None Game No. 112 Rogue 112 Adventurer 0 Explorer 0 Win Type - Total 0 Types 0/0/0/0/0/0/0/0/0 Lore% 53 Gallery% 57 Achievement% 44 Wizard Run 0 Options --------- ASCII 0 Keyboard 1 Movement Numpad Keybinds 0 Fullscreen 1 Font 18/SmallcapsGlow Map View 76x50 Tactical HUD 1 Map Filters NONE Filters NONE Steam 1 RUN: 403e8647-e15c-4c87-a666-7a7ac77a4f31